fUSD/lending_fUSD_20260606
["ID","MTS","AMOUNT","RATE_DAILY","PERIOD"]
[424299361,1780757445000,-150.0,0.00014355,2]
[424299360,1780757445000,-516.14280082,0.00014351,2]
[424299362,1780757445000,-150.0,0.00014359,2]
[424299363,1780757445000,-150.0,0.00014364,2]
[424299367,1780757445000,-150.0,0.00014375,2]
[424299364,1780757445000,-516.14280082,0.00014366,2]
[424299368,1780757445000,-516.14280082,0.00014381,2]
[424299366,1780757445000,-150.0,0.00014375,2]
[424299369,1780757445000,-166.66,0.00014384,2]
[424299356,1780757445000,-516.14280082,0.00014335,2]
[424299365,1780757445000,-150.0,0.00014366,2]
[424299370,1780757445000,-150.0,0.00014387,2]
[424299380,1780757445000,-150.0,0.0001442,2]
[424299378,1780757445000,-150.0,0.00014414,2]
[424299374,1780757445000,-150.0,0.000144,2]
[424299382,1780757445000,-449.0,0.00014428,2]
[424299376,1780757445000,-150.0,0.0001441,2]
[424299383,1780757445000,-459.0,0.00014428,2]
[424299377,1780757445000,-516.14280082,0.00014411,2]
[424299375,1780757445000,-150.0,0.00014405,2]
[424299372,1780757445000,-150.0,0.00014395,2]
[424299373,1780757445000,-516.14280082,0.00014396,2]
[424299371,1780757445000,-150.0,0.0001439,2]
[424299379,1780757445000,-150.0,0.00014418,2]
[424299462,1780757446000,-516.14280082,0.00014699,2]
[424299450,1780757446000,-150.0,0.00014661,2]
[424299461,1780757446000,-150.0,0.00014696,2]
[424299451,1780757446000,-150.0,0.00014664,2]
[424299448,1780757446000,-150.0,0.00014653,2]
[424299449,1780757446000,-516.14280082,0.00014653,2]
[424299443,1780757446000,-150.0,0.00014635,2]
[424299453,1780757446000,-516.14280082,0.00014668,2]
[424299442,1780757446000,-150.0,0.00014631,2]
[424299440,1780757446000,-516.14280082,0.00014623,2]
[424299444,1780757446000,-516.14280082,0.00014638,2]
[424299458,1780757446000,-516.14280082,0.00014684,2]
[424299455,1780757446000,-500.0,0.00014676,2]
[424299454,1780757446000,-150.0,0.00014671,2]
[424299456,1780757446000,-150.0,0.00014676,2]
[424299452,1780757446000,-150.0,0.00014665,2]
[424299457,1780757446000,-150.0,0.0001468,2]
[424299459,1780757446000,-150.0,0.00014687,2]
[424299463,1780757446000,-600.0,0.000147,5]
[424299472,1780757446000,-150.0,0.00014728,2]
[424299464,1780757446000,-3163.14745857,0.00014702,2]
[424299465,1780757446000,-150.0,0.0001471,2]
[424299445,1780757446000,-150.0,0.0001464,2]
[424299468,1780757446000,-516.14280082,0.00014714,2]
[424299460,1780757446000,-150.0,0.00014691,2]
[424299447,1780757446000,-150.0,0.00014651,2]
[424299422,1780757446000,-150.0,0.00014571,2]
[424299441,1780757446000,-150.0,0.00014625,2]
[424299466,1780757446000,-150.0,0.0001471,2]
[424299415,1780757446000,-150.0,0.00014533,2]
[424299413,1780757446000,-150.0,0.0001453,2]
[424299414,1780757446000,-516.14280082,0.00014532,2]
[424299417,1780757446000,-516.14280082,0.00014547,2]
[424299427,1780757446000,-150.0,0.00014573,2]
[424299428,1780757446000,-516.14280082,0.00014578,2]
[424299416,1780757446000,-150.0,0.00014543,2]
[424299419,1780757446000,-150.0,0.00014552,2]
[424299418,1780757446000,-150.0,0.00014548,2]
[424299421,1780757446000,-516.14280082,0.00014562,2]
[424299426,1780757446000,-150.0,0.00014573,2]
[424299420,1780757446000,-150.0,0.00014558,2]
[424299424,1780757446000,-150.0,0.00014572,2]
[424299431,1780757446000,-516.14280082,0.00014593,2]
[424299430,1780757446000,-150.0,0.00014592,2]
[424299429,1780757446000,-150.0,0.00014589,2]
[424299432,1780757446000,-150.0,0.00014594,2]
[424299434,1780757446000,-600.0,0.000146,5]
[424299435,1780757446000,-150.0,0.00014604,2]
[424299433,1780757446000,-150.0,0.00014595,2]
[424299437,1780757446000,-150.0,0.00014612,2]
[424299436,1780757446000,-516.14280082,0.00014608,2]
[424299438,1780757446000,-150.0,0.00014617,2]
[424299439,1780757446000,-150.0,0.00014619,2]
[424299446,1780757446000,-150.0,0.0001465,2]
[424299471,1780757446000,-150.0,0.00014726,2]
[424299467,1780757446000,-150.0,0.00014711,2]
[424299469,1780757446000,-1672.7364795,0.00014718,2]
[424299500,1780757446000,-25000.0,0.00014777,3]
[424299502,1780757446000,-150.0,0.0001478,2]
[424299501,1780757446000,-150.0,0.00014779,2]
[424299504,1780757446000,-151.0,0.00014785,2]
[424299503,1780757446000,-151.0,0.00014785,2]
[424299505,1780757446000,-25000.0,0.00014786,3]
[424299512,1780757446000,-500.0,0.00014799,2]
[424299513,1780757446000,-689.93,0.00014799,2]
[424299507,1780757446000,-150.0,0.00014789,2]
[424299514,1780757446000,-535.99,0.00014799,2]
[424299509,1780757446000,-150.0,0.00014791,2]
[424299511,1780757446000,-25000.0,0.00014794,3]
[424299516,1780757446000,-300.0,0.000148,3]
[424299515,1780757446000,-1435.76,0.00014799,2]
[424299510,1780757446000,-2000.0,0.00014791,7]
[424299517,1780757446000,-12263.81,0.000148,2]
[424299519,1780757446000,-12263.81,0.000148,2]
[424299518,1780757446000,-12263.81,0.000148,2]
[424299520,1780757446000,-12263.81,0.000148,2]
[424299521,1780757446000,-12263.82,0.000148,2]
[424299523,1780757446000,-150.0,0.00014802,2]
[424299522,1780757446000,-600.0,0.000148,5]
[424299526,1780757446000,-516.14280082,0.00014805,2]
[424299524,1780757446000,-150.0,0.00014803,2]
[424299525,1780757446000,-25000.0,0.00014803,3]
[424299499,1780757446000,-516.14280082,0.00014774,2]
[424299495,1780757446000,-4130.61,0.00014764,2]
[424299508,1780757446000,-516.14280082,0.0001479,2]
[424299498,1780757446000,-150.0,0.00014772,2]
[424299470,1780757446000,-150.0,0.00014726,2]
[424299497,1780757446000,-150.0,0.00014769,2]
[424299474,1780757446000,-150.0,0.0001473,2]
[424299483,1780757446000,-25000.0,0.0001475,3]
[424299473,1780757446000,-516.14280082,0.00014729,2]
[424299482,1780757446000,-10000.0,0.0001475,2]
[424299480,1780757446000,-516.14280082,0.00014744,2]
[424299476,1780757446000,-25000.0,0.00014733,3]
[424299479,1780757446000,-150.0,0.00014742,2]
[424299475,1780757446000,-150.0,0.00014733,2]
[424299477,1780757446000,-150.0,0.00014737,2]
[424299481,1780757446000,-150.0,0.0001475,2]
[424299486,1780757446000,-150.0,0.00014757,2]
[424299478,1780757446000,-25000.0,0.00014742,3]
[424299496,1780757446000,-25000.0,0.00014768,3]
[424299506,1780757446000,-150.0,0.00014788,2]
[424299484,1780757446000,-500.0,0.00014755,2]
[424299489,1780757446000,-560.57,0.00014764,2]
[424299488,1780757446000,-516.14280082,0.00014759,2]
[424299487,1780757446000,-25000.0,0.00014759,3]
[424299494,1780757446000,-2608.19,0.00014764,2]
[424299492,1780757446000,-886.99,0.00014764,2]
[424299491,1780757446000,-500.0,0.00014764,2]
[424299490,1780757446000,-576.89,0.00014764,2]
[424299485,1780757446000,-150.0,0.00014756,2]
[424299493,1780757446000,-679.76,0.00014764,2]
[424299562,1780757447000,-25000.0,0.00014874,3]
[424299567,1780757447000,-150.0,0.00014888,2]
[424299565,1780757447000,-25000.0,0.00014882,3]
[424299566,1780757447000,-150.0,0.00014883,2]
[424299564,1780757447000,-516.14280082,0.0001488,2]
[424299558,1780757447000,-25000.0,0.00014865,3]
[424299560,1780757447000,-150.0,0.00014868,2]
[424299559,1780757447000,-516.14280082,0.00014865,2]
[424299561,1780757447000,-150.0,0.00014871,2]
[424299556,1780757447000,-25000.0,0.00014856,3]
[424299569,1780757447000,-500.0,0.00014891,2]
[424299563,1780757447000,-150.0,0.00014879,2]
[424299577,1780757447000,-1517.0,0.000149,5]
[424299581,1780757447000,-150.0,0.00014907,2]
[424299578,1780757447000,-13686.4886628,0.000149,2]
[424299579,1780757447000,-250.0,0.000149,2]
[424299568,1780757447000,-25000.0,0.00014891,3]
[424299571,1780757447000,-150.0,0.00014895,2]
[424299575,1780757447000,-14828.72910787,0.000149,3]
[424299574,1780757447000,-300.000001,0.000149,2]
[424299573,1780757447000,-304.4573695,0.00014899,2]
[424299570,1780757447000,-150.0,0.00014894,2]
[424299572,1780757447000,-516.14280082,0.00014895,2]
[424299576,1780757447000,-25000.0,0.000149,3]
[424299584,1780757447000,-150.0,0.00014917,2]
[424299555,1780757447000,-150.0,0.00014856,2]
[424299580,1780757447000,-6212.84124073,0.000149,2]
[424299557,1780757447000,-150.0,0.00014864,2]
[424299532,1780757447000,-25000.0,0.00014821,3]
[424299552,1780757447000,-235361.48013266,0.0001485,2]
[424299531,1780757447000,-516.14280082,0.0001482,2]
[424299583,1780757447000,-516.14280082,0.00014911,2]
[424299529,1780757447000,-150.0,0.00014818,2]
[424299527,1780757447000,-150.0,0.00014809,2]
[424299530,1780757447000,-150.0,0.0001482,2]
[424299528,1780757447000,-25000.0,0.00014812,3]
[424299533,1780757447000,-150.0,0.00014825,2]
[424299542,1780757447000,-25000.0,0.00014847,3]
[424299543,1780757447000,-190.62685279,0.00014847,2]
[424299544,1780757447000,-150.0,0.00014848,2]
[424299534,1780757447000,-150.0,0.00014829,2]
[424299535,1780757447000,-25000.0,0.0001483,3]
[424299553,1780757447000,-151.0,0.0001485,2]
[424299538,1780757447000,-516.14280082,0.00014835,2]
[424299540,1780757447000,-3218.43687232,0.0001484,2]
[424299537,1780757447000,-150.0,0.00014833,2]
[424299541,1780757447000,-151.0,0.00014847,2]
[424299539,1780757447000,-25000.0,0.00014838,3]
[424299545,1780757447000,-150.0,0.00014848,2]
[424299547,1780757447000,-500.0,0.00014849,2]
[424299546,1780757447000,-150.0,0.00014849,2]
[424299548,1780757447000,-689.93,0.00014849,2]
[424299551,1780757447000,-1869.06714865,0.0001485,2]
[424299550,1780757447000,-1435.76,0.00014849,2]
[424299549,1780757447000,-535.99,0.00014849,2]
[424299554,1780757447000,-516.14280082,0.0001485,2]
[424299536,1780757447000,-150.0,0.00014831,2]
[424299582,1780757447000,-150.0,0.0001491,2]
[424299641,1780757447000,-560.57,0.00014999,2]
[424299590,1780757447000,-150.0,0.00014935,2]
[424299616,1780757447000,-169.15934622,0.00014986,2]
[424299620,1780757447000,-151.41923819,0.00014986,2]
[424299617,1780757447000,-160.88134904,0.00014986,2]
[424299618,1780757447000,-150.44031966,0.00014986,2]
[424299619,1780757447000,-256.07744874,0.00014986,2]
[424299621,1780757447000,-150.0,0.00014986,2]
[424299622,1780757447000,-150.0,0.00014986,2]
[424299637,1780757447000,-151.0,0.00014997,2]
[424299624,1780757447000,-800.0,0.00014992,2]
[424299634,1780757447000,-151.0,0.00014997,2]
[424299629,1780757447000,-800.0,0.00014992,2]
[424299632,1780757447000,-800.0,0.00014992,2]
[424299615,1780757447000,-158.73968764,0.00014986,2]
[424299627,1780757447000,-800.0,0.00014992,2]
[424299630,1780757447000,-800.0,0.00014992,2]
[424299631,1780757447000,-800.0,0.00014992,2]
[424299628,1780757447000,-800.0,0.00014992,2]
[424299635,1780757447000,-151.0,0.00014997,2]
[424299625,1780757447000,-800.0,0.00014992,2]
[424299633,1780757447000,-597.0,0.00014992,2]
[424299638,1780757447000,-3991.96544589,0.00014999,3]
[424299639,1780757447000,-5953.70844007,0.00014999,3]
[424299642,1780757447000,-560.57,0.00014999,2]
[424299640,1780757447000,-560.57,0.00014999,2]
[424299643,1780757447000,-560.57,0.00014999,2]
[424299587,1780757447000,-150.0,0.00014925,2]
[424299626,1780757447000,-800.0,0.00014992,2]
[424299623,1780757447000,-516.14280082,0.00014986,2]
[424299636,1780757447000,-151.0,0.00014997,2]
[424299614,1780757447000,-224.38985235,0.00014986,2]
[424299613,1780757447000,-151.5407187,0.00014986,2]
[424299588,1780757447000,-516.14280082,0.00014926,2]
[424299586,1780757447000,-190.62685279,0.00014924,2]
[424299585,1780757447000,-150.0,0.00014921,2]
[424299591,1780757447000,-150.0,0.0001494,2]
[424299589,1780757447000,-150.0,0.00014927,2]
[424299594,1780757447000,-150.0,0.00014947,2]
[424299604,1780757447000,-500.0,0.0001497,2]
[424299605,1780757447000,-1000.0,0.0001497,2]
[424299595,1780757447000,-150.0,0.00014956,2]
[424299601,1780757447000,-500.0,0.0001497,2]
[424299593,1780757447000,-516.14280082,0.00014941,2]
[424299602,1780757447000,-500.0,0.0001497,2]
[424299592,1780757447000,-150.0,0.0001494,2]
[424299612,1780757447000,-516.14280082,0.00014971,2]
[424299610,1780757447000,-1000.0,0.0001497,2]
[424299611,1780757447000,-150.0,0.00014971,2]
[424299609,1780757447000,-1000.0,0.0001497,2]
[424299599,1780757447000,-150.0,0.00014963,2]
[424299608,1780757447000,-701.11124635,0.0001497,2]
[424299607,1780757447000,-1000.0,0.0001497,2]
[424299598,1780757447000,-1263.24391144,0.0001496,2]
[424299597,1780757447000,-305.41714996,0.0001496,2]
[424299600,1780757447000,-150.0,0.00014967,2]
[424299603,1780757447000,-1000.0,0.0001497,2]
[424299596,1780757447000,-516.14280082,0.00014956,2]
[424299606,1780757447000,-500.0,0.0001497,2]
[424299688,1780757448000,-1435.76,0.00014999,2]
[424299683,1780757448000,-535.99,0.00014999,2]
[424299681,1780757448000,-4130.66781194,0.00014999,2]
[424299682,1780757448000,-535.99,0.00014999,2]
[424299684,1780757448000,-535.99,0.00014999,2]
[424299670,1780757448000,-2608.19,0.00014999,2]
[424299679,1780757448000,-4130.61,0.00014999,2]
[424299680,1780757448000,-4130.61,0.00014999,2]
[424299677,1780757448000,-4130.61,0.00014999,2]
[424299667,1780757448000,-2608.19,0.00014999,2]
[424299687,1780757448000,-1435.76,0.00014999,2]
[424299666,1780757448000,-502.26905522,0.00014999,2]
[424299678,1780757448000,-4130.61,0.00014999,2]
[424299685,1780757448000,-535.99,0.00014999,2]
[424299699,1780757448000,-300.0,0.00014999,2]
[424299690,1780757448000,-1435.76,0.00014999,2]
[424299700,1780757448000,-666.0,0.00014999,2]
[424299689,1780757448000,-1435.76,0.00014999,2]
[424299691,1780757448000,-1435.97401376,0.00014999,2]
[424299697,1780757448000,-300.0,0.00014999,2]
[424299695,1780757448000,-300.0,0.00014999,2]
[424299692,1780757448000,-300.0,0.00014999,2]
[424299694,1780757448000,-300.0,0.00014999,2]
[424299698,1780757448000,-300.0,0.00014999,2]
[424299696,1780757448000,-379.76203495,0.00014999,2]
[424299693,1780757448000,-666.0,0.00014999,2]
[424299702,1780757448000,-2080.68023042,0.00015,2]
[424299686,1780757448000,-536.21,0.00014999,2]
[424299671,1780757448000,-2608.34668627,0.00014999,2]
[424299649,1780757448000,-577.07524582,0.00014999,2]
[424299668,1780757448000,-2608.19,0.00014999,2]
[424299710,1780757448000,-2000.0,0.00015,2]
[424299646,1780757448000,-576.89,0.00014999,2]
[424299650,1780757448000,-500.0,0.00014999,2]
[424299647,1780757448000,-576.89,0.00014999,2]
[424299645,1780757448000,-576.89,0.00014999,2]
[424299648,1780757448000,-576.89,0.00014999,2]
[424299644,1780757448000,-560.7733412,0.00014999,2]
[424299652,1780757448000,-500.0,0.00014999,2]
[424299662,1780757448000,-679.76,0.00014999,2]
[424299653,1780757448000,-456.53966443,0.00014999,2]
[424299663,1780757448000,-679.76,0.00014999,2]
[424299651,1780757448000,-500.0,0.00014999,2]
[424299664,1780757448000,-679.76,0.00014999,2]
[424299654,1780757448000,-500.0,0.00014999,2]
[424299655,1780757448000,-563.26445173,0.00014999,2]
[424299656,1780757448000,-886.99,0.00014999,2]
[424299657,1780757448000,-886.99,0.00014999,2]
[424299660,1780757448000,-887.04052418,0.00014999,2]
[424299658,1780757448000,-886.99,0.00014999,2]
[424299659,1780757448000,-886.99,0.00014999,2]
[424299661,1780757448000,-679.76,0.00014999,2]
[424299672,1780757448000,-689.93,0.00014999,2]
[424299673,1780757448000,-689.93,0.00014999,2]
[424299674,1780757448000,-689.93,0.00014999,2]
[424299676,1780757448000,-690.14,0.00014999,2]
[424299675,1780757448000,-689.93,0.00014999,2]
[424299665,1780757448000,-679.95631724,0.00014999,2]
[424299669,1780757448000,-2608.19,0.00014999,2]
[424299701,1780757448000,-24490197.10209058,0.00015,2]
[424299704,1780757448000,-5093358.5197509,0.00015,2]
[424299711,1780757448000,-2000.0,0.00015,2]
[424299739,1780757448000,-374.665694,0.00015,2]
[424299749,1780757448000,-151.0,0.00015,2]
[424299743,1780757448000,-374.665694,0.00015,2]
[424299740,1780757448000,-374.665694,0.00015,2]
[424299742,1780757448000,-374.665694,0.00015,2]
[424299738,1780757448000,-374.665694,0.00015,2]
[424299741,1780757448000,-374.665694,0.00015,2]
[424299744,1780757448000,-151.0,0.00015,2]
[424299748,1780757448000,-151.0,0.00015,2]
[424299746,1780757448000,-151.0,0.00015,2]
[424299745,1780757448000,-151.0,0.00015,2]
[424299747,1780757448000,-151.0,0.00015,2]
[424299750,1780757448000,-151.0,0.00015,2]
[424299751,1780757448000,-151.0,0.00015,2]
[424299753,1780757448000,-350.0,0.00015014,3]
[424299759,1780757448000,-324.3369,0.00015068,2]
[424299752,1780757448000,-166.091231,0.00015,2]
[424299758,1780757448000,-324.3369,0.00015068,2]
[424299755,1780757448000,-900.0,0.00015068,2]
[424299757,1780757448000,-324.3369,0.00015068,2]
[424299760,1780757448000,-324.3369,0.00015068,2]
[424299754,1780757448000,-157.324506,0.00015068,2]
[424299756,1780757448000,-324.3369,0.00015068,2]
[424299762,1780757448000,-324.3369,0.00015068,2]
[424299763,1780757448000,-324.3369,0.00015068,2]
[424299761,1780757448000,-324.3369,0.00015068,2]
[424299712,1780757448000,-886.23,0.00015,2]
[424299734,1780757448000,-374.665694,0.00015,2]
[424299735,1780757448000,-374.665694,0.00015,2]
[424299764,1780757448000,-324.3369,0.00015068,2]
[424299727,1780757448000,-151.0,0.00015,2]
[424299707,1780757448000,-3922.93858806,0.00015,3]
[424299765,1780757448000,-324.3369,0.00015068,2]
[424299705,1780757448000,-428.80272023,0.00015,2]
[424299706,1780757448000,-351.77766535,0.00015,2]
[424299709,1780757448000,-2000.0,0.00015,2]
[424299703,1780757448000,-8099.05402124,0.00015,2]
[424299708,1780757448000,-2000.0,0.00015,2]
[424299714,1780757448000,-1702.6,0.00015,2]
[424299731,1780757448000,-153.344063,0.00015,2]
[424299713,1780757448000,-2000.0,0.00015,2]
[424299715,1780757448000,-2000.0,0.00015,2]
[424299717,1780757448000,-45795.0014413,0.00015,2]
[424299716,1780757448000,-221.56,0.00015,2]
[424299720,1780757448000,-29554.454532,0.00015,2]
[424299724,1780757448000,-151.0,0.00015,2]
[424299718,1780757448000,-441.4916209,0.00015,2]
[424299733,1780757448000,-374.665694,0.00015,2]
[424299719,1780757448000,-541954.1407997,0.00015,2]
[424299730,1780757448000,-151.0,0.00015,2]
[424299729,1780757448000,-151.0,0.00015,2]
[424299736,1780757448000,-374.665694,0.00015,2]
[424299737,1780757448000,-374.665694,0.00015,2]
[424299732,1780757448000,-374.665694,0.00015,2]
[424299726,1780757448000,-151.0,0.00015,2]
[424299725,1780757448000,-151.0,0.00015,2]
[424299723,1780757448000,-6966.3573207,0.00015,2]
[424299721,1780757448000,-151.0,0.00015,2]
[424299722,1780757448000,-3516483.9418682,0.00015,2]
[424299728,1780757448000,-151.0,0.00015,2]
[424299797,1780757449000,-2000.0,0.00015085,2]
[424299819,1780757449000,-1000.0,0.00015085,2]
[424299807,1780757449000,-2000.0,0.00015085,2]
[424299804,1780757449000,-2000.0,0.00015085,2]
[424299805,1780757449000,-1928.88,0.00015085,2]
[424299801,1780757449000,-2000.0,0.00015085,2]
[424299802,1780757449000,-2000.0,0.00015085,2]
[424299806,1780757449000,-150.0,0.00015085,2]
[424299800,1780757449000,-2000.0,0.00015085,2]
[424299799,1780757449000,-2000.0,0.00015085,2]
[424299803,1780757449000,-2000.0,0.00015085,2]
[424299809,1780757449000,-2000.0,0.00015085,2]
[424299825,1780757449000,-1000.0,0.00015085,2]
[424299808,1780757449000,-2000.0,0.00015085,2]
[424299816,1780757449000,-1000.0,0.00015085,2]
[424299815,1780757449000,-1000.0,0.00015085,2]
[424299811,1780757449000,-2000.0,0.00015085,2]
[424299810,1780757449000,-1000.0,0.00015085,2]
[424299812,1780757449000,-1000.0,0.00015085,2]
[424299813,1780757449000,-447.33,0.00015085,2]
[424299814,1780757449000,-1000.0,0.00015085,2]
[424299817,1780757449000,-1000.0,0.00015085,2]
[424299818,1780757449000,-1000.0,0.00015085,2]
[424299821,1780757449000,-1000.0,0.00015085,2]
[424299823,1780757449000,-1000.0,0.00015085,2]
[424299798,1780757449000,-1789.31,0.00015085,2]
[424299820,1780757449000,-1000.0,0.00015085,2]
[424299796,1780757449000,-2000.0,0.00015085,2]
[424299783,1780757449000,-2000.0,0.00015085,2]
[424299790,1780757449000,-2000.0,0.00015085,2]
[424299824,1780757449000,-1000.0,0.00015085,2]
[424299770,1780757449000,-324.3369,0.00015068,2]
[424299771,1780757449000,-324.3369,0.00015068,2]
[424299772,1780757449000,-500.0,0.00015068,2]
[424299766,1780757449000,-324.3369,0.00015068,2]
[424299769,1780757449000,-324.3369,0.00015068,2]
[424299767,1780757449000,-324.3369,0.00015068,2]
[424299768,1780757449000,-324.3369,0.00015068,2]
[424299773,1780757449000,-231.27061468,0.0001508,10]
[424299774,1780757449000,-666.0,0.00015084,2]
[424299775,1780757449000,-300.0,0.00015084,2]
[424299778,1780757449000,-300.0,0.00015084,2]
[424299781,1780757449000,-300.0,0.00015084,2]
[424299780,1780757449000,-300.0,0.00015084,2]
[424299782,1780757449000,-2000.0,0.00015085,2]
[424299779,1780757449000,-300.0,0.00015084,2]
[424299777,1780757449000,-300.0,0.00015084,2]
[424299795,1780757449000,-2000.0,0.00015085,2]
[424299785,1780757449000,-2000.0,0.00015085,2]
[424299792,1780757449000,-2000.0,0.00015085,2]
[424299784,1780757449000,-2000.0,0.00015085,2]
[424299788,1780757449000,-2000.0,0.00015085,2]
[424299791,1780757449000,-2000.0,0.00015085,2]
[424299794,1780757449000,-2000.0,0.00015085,2]
[424299786,1780757449000,-2000.0,0.00015085,2]
[424299789,1780757449000,-2000.0,0.00015085,2]
[424299787,1780757449000,-2000.0,0.00015085,2]
[424299793,1780757449000,-2000.0,0.00015085,2]
[424299826,1780757449000,-1000.0,0.00015085,2]
[424299776,1780757449000,-666.0,0.00015084,2]
[424299827,1780757449000,-1000.0,0.00015085,2]
[424299860,1780757449000,-1000.0,0.00015085,2]
[424299863,1780757449000,-1000.0,0.00015085,2]
[424299861,1780757449000,-1000.0,0.00015085,2]
[424299867,1780757449000,-1000.0,0.00015085,2]
[424299869,1780757449000,-462.54122938,0.0001509,10]
[424299868,1780757449000,-373.63,0.00015085,2]
[424299871,1780757449000,-1215.51,0.000151,2]
[424299865,1780757449000,-1000.0,0.00015085,2]
[424299862,1780757449000,-1000.0,0.00015085,2]
[424299864,1780757449000,-1000.0,0.00015085,2]
[424299866,1780757449000,-1000.0,0.00015085,2]
[424299870,1780757449000,-255.07788385,0.00015099,10]
[424299873,1780757449000,-2000.0,0.00015156,2]
[424299883,1780757449000,-1138.35996658,0.000155,2]
[424299886,1780757449000,-1138.35996658,0.000157,2]
[424299874,1780757449000,-500.0,0.00015165,2]
[424299881,1780757449000,-150.0,0.00015436,2]
[424299878,1780757449000,-1517.64,0.000153,2]
[424299875,1780757449000,-1138.35996658,0.000152,2]
[424299877,1780757449000,-1734.62772924,0.00015266,2]
[424299872,1780757449000,-352.0,0.00015109,2]
[424299822,1780757449000,-1000.0,0.00015085,2]
[424299880,1780757449000,-10089.47184851,0.000154,2]
[424299879,1780757449000,-1138.35996658,0.000154,2]
[424299882,1780757449000,-500.0,0.00015439,2]
[424299884,1780757449000,-10089.47184851,0.000155,2]
[424299885,1780757449000,-500.0,0.00015521,2]
[424299859,1780757449000,-956.06,0.00015085,2]
[424299858,1780757449000,-1000.0,0.00015085,2]
[424299876,1780757449000,-10089.47184851,0.000152,2]
[424299855,1780757449000,-1000.0,0.00015085,2]
[424299854,1780757449000,-1000.0,0.00015085,2]
[424299828,1780757449000,-1000.0,0.00015085,2]
[424299832,1780757449000,-1000.0,0.00015085,2]
[424299834,1780757449000,-1000.0,0.00015085,2]
[424299831,1780757449000,-1000.0,0.00015085,2]
[424299829,1780757449000,-1000.0,0.00015085,2]
[424299830,1780757449000,-1000.0,0.00015085,2]
[424299844,1780757449000,-1000.0,0.00015085,2]
[424299845,1780757449000,-494.54,0.00015085,2]
[424299846,1780757449000,-1000.0,0.00015085,2]
[424299836,1780757449000,-1000.0,0.00015085,2]
[424299835,1780757449000,-1000.0,0.00015085,2]
[424299840,1780757449000,-1000.0,0.00015085,2]
[424299837,1780757449000,-1000.0,0.00015085,2]
[424299833,1780757449000,-1000.0,0.00015085,2]
[424299838,1780757449000,-1000.0,0.00015085,2]
[424299839,1780757449000,-1000.0,0.00015085,2]
[424299857,1780757449000,-1000.0,0.00015085,2]
[424299856,1780757449000,-1000.0,0.00015085,2]
[424299851,1780757449000,-1000.0,0.00015085,2]
[424299853,1780757449000,-1000.0,0.00015085,2]
[424299848,1780757449000,-1000.0,0.00015085,2]
[424299852,1780757449000,-1000.0,0.00015085,2]
[424299850,1780757449000,-1000.0,0.00015085,2]
[424299847,1780757449000,-1000.0,0.00015085,2]
[424299842,1780757449000,-1000.0,0.00015085,2]
[424299843,1780757449000,-1000.0,0.00015085,2]
[424299841,1780757449000,-1000.0,0.00015085,2]
[424299849,1780757449000,-1000.0,0.00015085,2]
[424299911,1780757450000,-10000.0,0.00016203,2]
[424299915,1780757450000,-200.0,0.0001634,2]
[424299916,1780757450000,-1083.41442062,0.00016343,2]
[424299918,1780757450000,-1865.36488656,0.00016362,2]